bitfinex/quotes_BTCUSD_20250917
["timestamp","ask_amount","ask_price","bid_price","bid_amount"]
[1758127029245,0.23494,115740.0,115730.0,0.23082793]
[1758127029452,0.23494,115740.0,115730.0,0.22940793]
[1758127029646,0.64786942,115740.0,115730.0,0.17493603]
[1758127029856,0.76093909,115740.0,115730.0,0.17281603]
[1758127030653,0.78690187,115740.0,115730.0,0.17281603]
[1758127030923,0.87217154,115740.0,115730.0,0.17291603]
[1758127031723,1.04497264,115740.0,115730.0,0.17291603]
[1758127032128,0.87417154,115740.0,115730.0,0.17391603]
[1758127032982,1.04697264,115740.0,115730.0,0.17391603]
[1758127035059,0.87417154,115740.0,115730.0,0.17391603]
[1758127035271,0.78890187,115740.0,115730.0,0.17391603]
[1758127035992,0.96170297,115740.0,115730.0,0.17391603]
[1758127036497,0.78890187,115740.0,115730.0,0.17391603]
[1758127037119,0.96170297,115740.0,115730.0,0.17391603]
[1758127037537,1.04697264,115740.0,115730.0,0.17391603]
[1758127038497,0.87417154,115740.0,115730.0,0.17391603]
[1758127039035,1.04697264,115740.0,115730.0,0.17391603]
[1758127039663,0.87417154,115740.0,115730.0,0.17391603]
[1758127043259,0.46331212,115740.0,115730.0,0.17391603]
[1758127043473,0.78890187,115740.0,115730.0,0.17391603]
[1758127045443,0.96170297,115740.0,115730.0,0.17391603]
[1758127049238,0.78890187,115740.0,115730.0,0.17391603]
[1758127054860,0.96170297,115740.0,115730.0,0.17391603]
[1758127055078,0.78890187,115740.0,115730.0,0.17391603]
[1758127055423,0.87417154,115740.0,115730.0,0.17391603]
[1758127056350,1.04697264,115740.0,115730.0,0.17391603]
[1758127058797,0.46331212,115740.0,115730.0,0.17391603]
[1758127059023,0.78890187,115740.0,115730.0,0.17391603]
[1758127060075,0.96170297,115740.0,115730.0,0.17391603]
[1758127060885,0.78890187,115740.0,115730.0,0.17391603]
[1758127064917,0.96170297,115740.0,115730.0,0.17391603]
[1758127065649,0.78890187,115740.0,115730.0,0.17391603]
[1758127065851,1.04697264,115740.0,115730.0,0.17391603]
[1758127069868,1.00137526,115740.0,115730.0,0.17391603]
[1758127070997,0.63611322,115740.0,115730.0,0.17391603]
[1758127071148,0.37689763,115740.0,115730.0,0.17391603]
[1758127071773,0.37699763,115740.0,115730.0,0.17391603]
[1758127072114,0.54979873,115740.0,115730.0,0.17391603]
[1758127076253,0.54479873,115740.0,115730.0,0.17391603]
[1758127080750,0.90945077,115740.0,115730.0,0.0011]
[1758127080963,1.24945077,115740.0,115730.0,0.0011]
[1758127081864,1.31541177,115740.0,115730.0,0.0011]
[1758127083899,0.95014973,115740.0,115730.0,0.0011]
[1758127084083,1.31541177,115740.0,115730.0,0.17391603]
[1758127084563,1.31541177,115740.0,115730.0,0.0011]
[1758127085221,1.40068144,115740.0,115730.0,0.0011]
[1758127085440,1.31541177,115740.0,115730.0,0.17391603]
[1758127085852,1.31041177,115740.0,115730.0,0.0011]
[1758127086508,1.40381177,115740.0,115730.0,0.0011]
[1758127087792,1.40381177,115740.0,115730.0,0.17391603]
[1758127088296,1.40381177,115740.0,115730.0,0.0011]
[1758127088531,1.40381177,115740.0,115730.0,0.17391603]
[1758127088785,1.40381177,115740.0,115730.0,0.0011]
[1758127089032,1.40381177,115740.0,115730.0,0.17391603]
[1758127089317,1.40381177,115740.0,115730.0,0.0011]
[1758127089520,1.40381177,115740.0,115730.0,0.17391603]
[1758127089937,1.40381177,115740.0,115730.0,0.0011]
[1758127093100,1.40381177,115740.0,115730.0,0.17391603]
[1758127093504,1.40381177,115740.0,115730.0,0.0011]
[1758127093770,1.40381177,115740.0,115730.0,0.17391603]
[1758127095512,1.48908144,115740.0,115730.0,0.0011]
[1758127096264,1.48908144,115740.0,115730.0,0.17391603]
[1758127097184,1.48908144,115740.0,115730.0,0.0011]
[1758127097379,1.48908144,115740.0,115730.0,0.17391603]
[1758127097553,1.48908144,115740.0,115730.0,0.0011]
[1758127098557,1.48908144,115740.0,115730.0,0.17391603]
[1758127099532,1.40381177,115740.0,115730.0,0.17391603]
[1758127101328,1.40381177,115740.0,115730.0,0.0011]
[1758127101553,1.40381177,115740.0,115730.0,0.17391603]
[1758127102959,1.40381177,115740.0,115730.0,0.0011]
[1758127106435,1.40381177,115740.0,115730.0,0.17391603]
[1758127106792,1.48908144,115740.0,115730.0,0.0011]
[1758127107073,1.03854973,115740.0,115730.0,0.17391603]
[1758127107415,1.40381177,115740.0,115730.0,0.17391603]
[1758127112604,1.40381177,115740.0,115730.0,0.0011]
[1758127114392,1.40381177,115740.0,115730.0,0.17391603]
[1758127114628,1.40381177,115740.0,115730.0,0.0011]
[1758127114786,1.40381177,115740.0,115730.0,0.17391603]
[1758127115548,1.40381177,115740.0,115730.0,0.0011]
[1758127116296,1.48908144,115740.0,115730.0,0.0011]
[1758127119164,1.40381177,115740.0,115730.0,0.0011]
[1758127131822,1.86049371,115740.0,115730.0,0.0011]
[1758127132265,1.87664956,115740.0,115730.0,0.0011]
[1758127132890,1.87664956,115740.0,115730.0,0.001]
[1758127134185,0.51281603,115730.0,115720.0,0.0001]
[1758127134398,1.27945769,115730.0,115720.0,0.0001]
[1758127134605,1.30729769,115730.0,115720.0,0.0001]
[1758127135073,1.33326684,115730.0,115720.0,0.0001]
[1758127135478,1.33626684,115730.0,115720.0,0.0011]
[1758127135885,1.06596684,115730.0,115720.0,0.0011]
[1758127136109,1.33636684,115730.0,115720.0,0.0011]
[1758127137358,1.42163651,115730.0,115720.0,0.0011]
[1758127140633,1.01066452,115730.0,115720.0,0.0011]
[1758127140849,0.92539485,115730.0,115720.0,0.0011]
[1758127141061,1.33636684,115730.0,115720.0,0.001]
[1758127142355,1.33136684,115730.0,115720.0,0.001]
[1758127143020,1.75847096,115730.0,115720.0,0.001]
[1758127143241,1.84374063,115730.0,115720.0,0.001]
[1758127143678,1.43276864,115730.0,115720.0,0.001]
[1758127143906,1.84374063,115730.0,115720.0,0.001]
[1758127144136,1.43276864,115730.0,115720.0,0.001]
[1758127144348,1.84374063,115730.0,115720.0,0.001]
[1758127145228,1.8685767,115730.0,115720.0,0.001]
[1758127145671,1.43276179,115730.0,115720.0,0.001]
[1758127147421,1.84373378,115730.0,115720.0,0.001]
[1758127147656,1.43276179,115730.0,115720.0,0.001]
[1758127148516,1.84373378,115730.0,115720.0,0.001]
[1758127148969,1.57333378,115730.0,115720.0,0.001]
[1758127149226,1.84369378,115730.0,115720.0,0.001]
[1758127149485,1.56833378,115730.0,115720.0,0.001]
[1758127149736,1.83869378,115730.0,115720.0,0.001]
[1758127153339,1.86579086,115730.0,115720.0,0.001]
[1758127153550,1.8635367,115730.0,115720.0,0.001]
[1758127153971,2.3125367,115730.0,115720.0,0.001]
[1758127156317,2.28769378,115730.0,115720.0,0.001]
[1758127159570,1.89923374,115730.0,115720.0,0.001]
[1758127160858,0.51283097,115720.0,115710.0,0.00014121]
[1758127161068,0.90017006,115720.0,115710.0,0.00014121]
[1758127161279,1.75194404,115720.0,115710.0,0.00014121]
[1758127161711,1.7780197,115720.0,115710.0,0.00014121]
[1758127162562,1.7790197,115720.0,115710.0,0.00114121]
[1758127162768,1.40607572,115720.0,115710.0,0.00114121]
[1758127162991,2.2280197,115720.0,115710.0,0.00114121]
[1758127163841,2.2270197,115720.0,115710.0,0.00014121]
[1758127164051,2.2290197,115720.0,115710.0,0.00014121]
[1758127171274,2.2809597,115720.0,115710.0,0.00014121]
[1758127171700,2.28955966,115720.0,115710.0,0.00014121]
[1758127173479,2.28755966,115720.0,115710.0,0.00014121]
[1758127173679,2.29155966,115720.0,115710.0,0.00014121]
[1758127177002,2.29155046,115720.0,115710.0,0.00014121]
[1758127177400,2.70252245,115720.0,115710.0,0.00014121]
[1758127177806,2.29155046,115720.0,115710.0,0.00014121]
[1758127179213,2.29159046,115720.0,115710.0,0.00014121]
[1758127180718,1.84259046,115720.0,115710.0,0.00014121]
[1758127184095,1.54738754,115720.0,115710.0,0.00014121]
[1758127184537,1.81774754,115720.0,115710.0,0.00014121]
[1758127185011,2.19154754,115720.0,115710.0,0.00014121]
[1758127186193,2.16445046,115720.0,115710.0,0.00014121]
[1758127189297,2.1558505,115720.0,115710.0,0.00014121]
[1758127189718,2.2492905,115720.0,115710.0,0.00014121]
[1758127191787,1.42734652,115720.0,115710.0,0.00014121]
[1758127191945,2.19203436,115720.0,115710.0,0.00014121]
[1758127192159,2.55765684,115720.0,115710.0,0.00014121]
[1758127192919,0.51286084,115700.0,115690.0,0.0002]
[1758127193131,1.3187611,115700.0,115690.0,0.00067185]
[1758127193352,1.3238511,115700.0,115690.0,0.00067185]
[1758127193579,1.3734511,115700.0,115690.0,0.00067185]
[1758127194374,1.3735511,115700.0,115690.0,0.02636185]
[1758127194586,1.3462211,115700.0,115690.0,0.02636185]
[1758127194998,1.3522511,115700.0,115690.0,0.02636185]
[1758127195201,1.3765511,115700.0,115690.0,0.02636185]
[1758127195405,1.3765511,115700.0,115690.0,0.00067185]
[1758127196025,1.79411349,115700.0,115690.0,0.00067185]
[1758127196683,1.85918275,115700.0,115690.0,0.00067185]
[1758127198096,1.49356027,115700.0,115690.0,0.00067185]
[1758127199536,1.85918275,115700.0,115690.0,0.00067185]
[1758127199744,1.85918982,115700.0,115690.0,0.00067185]
[1758127203475,1.85918982,115700.0,115690.0,1e-08]
[1758127203476,1.8843469,115700.0,115690.0,1e-08]
[1758127203684,0.53771869,115690.0,115680.0,0.0002]
[1758127203902,1.66644563,115690.0,115680.0,0.0002]
[1758127204105,1.69554563,115690.0,115680.0,0.0002]
[1758127204458,1.7129303,115690.0,115680.0,0.0002]
[1758127204682,1.7130303,115690.0,115680.0,0.0002]
[1758127205008,1.7150303,115690.0,115680.0,0.0002]
[1758127209396,1.72363026,115690.0,115680.0,0.0002]
[1758127214891,1.81707026,115690.0,115680.0,0.0002]
[1758127215115,0.51289073,115680.0,115670.0,0.00027]
[1758127215310,2.00535265,115680.0,115670.0,0.00027]
[1758127215544,2.00743265,115680.0,115670.0,0.00027]
[1758127215689,2.05939557,115680.0,115670.0,0.00027]
[1758127215897,2.08316557,115680.0,115670.0,0.00027]
[1758127216884,2.08516557,115680.0,115670.0,0.00027]
[1758127218767,2.09364067,115680.0,115670.0,0.00027]
[1758127221791,2.09164067,115680.0,115670.0,0.00027]
[1758127223979,2.09664067,115680.0,115670.0,0.00027]
[1758127224645,2.10524063,115680.0,115670.0,0.00027]
[1758127224877,2.55101501,115680.0,115670.0,1e-08]
[1758127225107,2.18539253,115680.0,115670.0,1e-08]
[1758127225347,2.18039253,115680.0,115670.0,1e-08]
[1758127225591,2.18539253,115680.0,115670.0,1e-08]
[1758127225999,2.54241505,115680.0,115670.0,1e-08]
[1758127226212,2.578112,115680.0,115670.0,1e-08]
[1758127226892,2.21248952,115680.0,115670.0,1e-08]
[1758127227522,2.58640952,115680.0,115670.0,1e-08]
[1758127235590,2.5863849,115680.0,115670.0,1e-08]
[1758127236506,2.3160649,115680.0,115670.0,1e-08]
[1758127236719,2.5863849,115680.0,115670.0,1e-08]
[1758127239411,2.30746494,115680.0,115670.0,1e-08]
[1758127239644,2.57778494,115680.0,115670.0,1e-08]
[1758127244494,0.87852815,115670.0,115660.0,0.0006345]
[1758127244753,1.31878838,115670.0,115660.0,0.0006345]
[1758127244967,1.34658838,115670.0,115660.0,0.0006345]
[1758127245370,1.37257904,115670.0,115660.0,0.0006345]
[1758127245585,1.37267904,115670.0,115660.0,0.0006345]
[1758127245803,1.37667904,115670.0,115660.0,0.0249845]
[1758127246013,1.35411904,115670.0,115660.0,0.0249845]
[1758127246423,1.37667904,115670.0,115660.0,0.0249845]
[1758127247229,0.64436453,115670.0,115660.0,0.0284745]
[1758127247458,1.28030701,115670.0,115660.0,0.0284745]
[1758127247681,1.00998701,115670.0,115660.0,0.0284745]
[1758127247913,1.07567652,115670.0,115660.0,0.0284745]
[1758127248139,1.34599652,115670.0,115660.0,0.0284745]
[1758127248400,1.43126619,115670.0,115660.0,0.0284745]
[1758127249082,1.16094619,115670.0,115660.0,0.0284745]
[1758127249312,1.43126619,115670.0,115660.0,0.0284745]
[1758127250236,1.43122619,115670.0,115660.0,0.0284745]
[1758127253037,1.16094619,115670.0,115660.0,0.0284745]
[1758127253241,1.43122619,115670.0,115660.0,0.0284745]
[1758127253928,1.47708066,115670.0,115660.0,0.0284745]
[1758127255736,1.20680066,115670.0,115660.0,0.0284745]
[1758127255962,0.64436453,115670.0,115660.0,0.20139512]
[1758127256182,0.91464453,115670.0,115660.0,0.20139512]
[1758127256424,1.03974295,115670.0,115660.0,0.20139512]
[1758127256644,1.31002295,115670.0,115660.0,0.20139512]
[1758127256879,0.898546,115670.0,115660.0,0.20139512]
[1758127257110,0.72564033,115670.0,115660.0,0.20139512]
[1758127257402,0.72564033,115670.0,115660.0,0.61287207]
[1758127257647,0.11536033,115670.0,115660.0,0.61287207]
[1758127257886,0.30037066,115670.0,115660.0,0.64312397]
[1758127258123,0.29637066,115670.0,115660.0,0.0285745]
[1758127258347,0.88475328,115670.0,115660.0,0.20249512]
[1758127258581,0.94403229,115670.0,115660.0,0.20249512]
[1758127258816,0.94003229,115670.0,115660.0,0.20149512]
[1758127259043,0.94203229,115670.0,115660.0,0.20349512]
[1758127259279,0.94003229,115670.0,115660.0,0.20149512]
[1758127259679,0.94003229,115670.0,115660.0,0.20349512]
[1758127259680,0.94103229,115670.0,115660.0,0.20349512]
[1758127260561,1.02630196,115670.0,115660.0,0.0305745]
[1758127261031,1.39228374,115670.0,115660.0,0.0304745]
[1758127263882,1.12200374,115670.0,115660.0,0.0304745]
[1758127264094,1.39224374,115670.0,115660.0,0.0304745]
[1758127264327,1.39224374,115670.0,115660.0,0.0290545]
[1758127264559,1.12200374,115670.0,115660.0,0.0290545]
[1758127264788,1.39220374,115670.0,115660.0,0.0290545]
[1758127265062,1.76608374,115670.0,115660.0,0.0290545]
[1758127265268,1.78416167,115670.0,115660.0,0.0290545]
[1758127265480,1.78416167,115670.0,115660.0,0.0047045]
[1758127265694,1.78416167,115670.0,115660.0,0.0026345]
[1758127265695,1.81146167,115670.0,115660.0,0.0026345]
[1758127265899,0.17292062,115660.0,115650.0,0.02418]
[1758127266080,0.97156931,115660.0,115650.0,0.02276]
[1758127266347,0.97156931,115660.0,115650.0,0.0248]
[1758127266554,1.38504626,115660.0,115650.0,0.0248]
[1758127266762,0.17293558,115650.0,115640.0,0.08605299]
[1758127266970,1.44479915,115650.0,115640.0,0.08605299]
[1758127267184,1.54614586,115650.0,115640.0,0.08595299]
[1758127267394,1.89124586,115650.0,115640.0,0.08595299]
[1758127267639,1.91723571,115650.0,115640.0,0.08595299]
[1758127268059,1.98109127,115650.0,115640.0,0.08595299]
[1758127268743,1.98119127,115650.0,115640.0,0.08595299]
[1758127269663,1.70789127,115650.0,115640.0,0.08595299]
[1758127269880,1.97813127,115650.0,115640.0,0.08595299]
[1758127270110,1.98123127,115650.0,115640.0,0.08595299]
[1758127271967,1.98523127,115650.0,115640.0,0.08595299]
[1758127272392,1.71499127,115650.0,115640.0,0.08595299]
[1758127272614,2.00943127,115650.0,115640.0,0.06339299]
[1758127273290,1.73919127,115650.0,115640.0,0.06339299]
[1758127273498,2.00943127,115650.0,115640.0,0.06339299]
[1758127273937,1.73919127,115650.0,115640.0,0.06339299]
[1758127274147,2.00943127,115650.0,115640.0,0.06339299]
[1758127274580,1.73919127,115650.0,115640.0,0.06339299]
[1758127274786,2.00943127,115650.0,115640.0,0.08595299]
[1758127275439,1.73919127,115650.0,115640.0,0.08595299]
[1758127275641,2.00943127,115650.0,115640.0,0.08595299]
[1758127276062,1.73919127,115650.0,115640.0,0.08595299]
[1758127276481,2.00943127,115650.0,115640.0,0.08595299]
[1758127276691,1.73919127,115650.0,115640.0,0.08595299]
[1758127277122,0.8016677,115650.0,115640.0,0.08595299]
[1758127277334,1.8948616,115650.0,115640.0,0.08595299]
[1758127278958,1.6246216,115650.0,115640.0,0.08595299]
[1758127279160,1.8961016,115650.0,115640.0,0.08595299]
[1758127279937,0.8016677,115650.0,115640.0,0.06339299]
[1758127280136,1.40508331,115650.0,115640.0,0.08595299]
[1758127280601,0.72220636,115650.0,115640.0,0.08595299]
[1758127280829,1.40508331,115650.0,115640.0,0.08595299]
[1758127282124,1.13368331,115650.0,115640.0,0.08595299]
[1758127282356,1.40504331,115650.0,115640.0,0.08595299]
[1758127283163,1.49031298,115650.0,115640.0,0.08595299]
[1758127284576,1.21895298,115650.0,115640.0,0.08595299]
[1758127284933,1.40496331,115650.0,115640.0,0.08595299]
[1758127289516,1.81644026,115650.0,115640.0,0.08595299]
[1758127289768,1.13368331,115650.0,115640.0,0.08595299]
[1758127289963,1.06484331,115650.0,115640.0,0.08595299]
[1758127290177,1.40484331,115650.0,115640.0,0.08595299]
[1758127290397,1.06484331,115650.0,115640.0,0.08595299]
[1758127290909,1.40480331,115650.0,115640.0,0.08595299]
[1758127293236,1.40476331,115650.0,115640.0,0.08595299]
[1758127295834,1.40464331,115650.0,115640.0,0.08595299]
[1758127296004,1.48991298,115650.0,115640.0,0.08595299]
[1758127296515,1.40464331,115650.0,115640.0,0.08595299]
[1758127296754,0.99316636,115650.0,115640.0,0.08595299]
[1758127296954,1.81612026,115650.0,115640.0,0.08595299]
[1758127297173,1.40464331,115650.0,115640.0,0.08595299]
[1758127299556,0.99316636,115650.0,115640.0,0.08595299]
[1758127299995,1.81612026,115650.0,115640.0,0.08595299]
[1758127300201,1.81612026,115650.0,115640.0,0.06339299]
[1758127300202,1.81823026,115650.0,115640.0,0.06339299]
[1758127300406,1.82117026,115650.0,115640.0,0.06339299]
[1758127300707,1.92980993,115650.0,115640.0,0.06339299]
[1758127301006,1.90643993,115650.0,115640.0,0.06339299]
[1758127301269,1.90643993,115650.0,115640.0,0.08696299]
[1758127301448,1.90349993,115650.0,115640.0,0.08696299]
[1758127303112,1.90643993,115650.0,115640.0,0.06339299]
[1758127303358,1.94591256,115650.0,115640.0,0.06339299]
[1758127303571,1.97075548,115650.0,115640.0,0.06339299]
[1758127303746,1.69979548,115650.0,115640.0,0.06339299]
[1758127303946,1.97079548,115650.0,115640.0,0.06339299]
[1758127304798,1.69979548,115650.0,115640.0,0.06339299]
[1758127305034,1.97079548,115650.0,115640.0,0.06339299]
[1758127306615,1.97075548,115650.0,115640.0,0.06339299]
[1758127308906,1.97071548,115650.0,115640.0,0.06339299]
[1758127310182,1.69979548,115650.0,115640.0,0.06339299]
[1758127310407,1.97071548,115650.0,115640.0,0.06339299]
[1758127311048,2.41971548,115650.0,115640.0,0.06339299]
[1758127312665,2.14879548,115650.0,115640.0,0.06339299]
[1758127312825,2.41959548,115650.0,115640.0,0.06339299]
[1758127314008,2.14879548,115650.0,115640.0,0.06339299]
[1758127314190,2.41955548,115650.0,115640.0,0.06339299]
[1758127315338,2.79355548,115650.0,115640.0,0.06339299]
[1758127315958,2.3365734,115650.0,115640.0,0.06339299]
[1758127316621,2.0658134,115650.0,115640.0,0.06339299]
[1758127317296,1.97056158,115650.0,115640.0,0.06339299]
[1758127317438,2.3365334,115650.0,115640.0,0.06339299]
[1758127317640,2.3364934,115650.0,115640.0,0.06339299]
[1758127319109,2.3365334,115650.0,115640.0,0.06339299]
[1758127319545,2.0658134,115650.0,115640.0,0.06339299]
[1758127319862,2.3364934,115650.0,115640.0,0.06339299]
[1758127320011,2.24522373,115650.0,115640.0,0.06339299]
[1758127320635,2.61119555,115650.0,115640.0,0.06339299]
[1758127321095,2.61119555,115650.0,115620.0,0.00091665]
[1758127321096,0.17296549,115630.0,115620.0,0.00091665]
[1758127321304,0.66799359,115630.0,115620.0,0.00091665]
[1758127321512,0.51298045,115620.0,115610.0,0.22729793]
[1758127321730,1.03340392,115620.0,115610.0,0.22729793]
[1758127321939,1.008561,115620.0,115610.0,0.22729793]
[1758127322138,1.279241,115620.0,115610.0,0.22719793]
[1758127322345,1.33505727,115620.0,115610.0,0.22719793]
[1758127322554,1.33515727,115620.0,115610.0,0.22719793]
[1758127323069,1.06747727,115620.0,115610.0,0.22719793]
[1758127323496,1.33811727,115620.0,115610.0,0.22719793]
[1758127323695,1.06747727,115620.0,115610.0,0.22719793]
[1758127323901,1.33811727,115620.0,115610.0,0.22719793]
[1758127324107,1.33808727,115620.0,115610.0,0.22719793]
[1758127324933,1.06744727,115620.0,115610.0,0.22719793]
[1758127325163,1.31496727,115620.0,115610.0,0.22719793]
[1758127325376,1.33808727,115620.0,115610.0,0.22719793]
[1758127327786,1.03922727,115620.0,115610.0,0.22719793]
[1758127328027,1.02132639,115620.0,115610.0,0.25052793]
[1758127328262,1.02313821,115620.0,115610.0,0.25052793]
[1758127328463,1.38729821,115620.0,115610.0,0.25052793]
[1758127328699,1.38722877,115620.0,115610.0,0.25052793]
[1758127328904,1.38935877,115620.0,115610.0,0.25052793]
[1758127329305,1.02816877,115620.0,115610.0,0.25052793]
[1758127329530,1.39232877,115620.0,115610.0,0.25052793]
[1758127331222,1.02816877,115620.0,115610.0,0.25052793]
[1758127331649,1.38931877,115620.0,115610.0,0.25052793]
[1758127331857,1.39228877,115620.0,115610.0,0.25052793]
[1758127332267,1.38931877,115620.0,115610.0,0.25052793]
[1758127332486,1.04126236,115620.0,115610.0,0.25052793]
[1758127332714,1.40542236,115620.0,115610.0,0.25052793]
[1758127333120,1.04126236,115620.0,115610.0,0.25052793]
[1758127333296,1.40835236,115620.0,115610.0,0.25052793]
[1758127334124,0.67316054,115620.0,115610.0,0.42352334]
[1758127334324,1.13265236,115620.0,115610.0,0.25052793]
[1758127334523,1.38714877,115620.0,115610.0,0.25052793]
[1758127335716,1.38927877,115620.0,115610.0,0.25052793]
[1758127336150,1.39224877,115620.0,115610.0,0.25052793]
[1758127338751,1.02117695,115620.0,115610.0,0.25052793]
[1758127338953,1.38714877,115620.0,115610.0,0.25052793]
[1758127339164,0.9951786,115620.0,115610.0,0.25052793]
[1758127339369,1.36328042,115620.0,115610.0,0.25052793]
[1758127340687,0.9951786,115620.0,115610.0,0.25052793]
[1758127340925,1.36107042,115620.0,115610.0,0.25052793]
[1758127341289,0.99707042,115620.0,115610.0,0.25052793]
[1758127341602,1.36119042,115620.0,115610.0,0.25052793]
[1758127342818,0.99707042,115620.0,115610.0,0.25052793]
[1758127343037,1.00217042,115620.0,115610.0,0.25052793]
[1758127343244,1.36625042,115620.0,115610.0,0.25052793]
[1758127343480,1.38232964,115620.0,115610.0,0.25052793]
[1758127345362,1.36625042,115620.0,115610.0,0.25052793]
[1758127345763,1.00217042,115620.0,115610.0,0.42352334]
[1758127345993,1.36324042,115620.0,115610.0,0.42352334]
[1758127346189,1.36324042,115620.0,115610.0,0.25052793]
[1758127346415,1.37719754,115620.0,115610.0,0.42352334]
[1758127346623,1.01122572,115620.0,115610.0,0.42352334]
[1758127346790,0.64718572,115620.0,115610.0,0.42352334]
[1758127346995,1.34737962,115620.0,115610.0,0.42352334]
[1758127347413,1.34737962,115620.0,115610.0,0.25052793]
[1758127347839,1.34741962,115620.0,115610.0,0.42352334]
[1758127348262,1.34741962,115620.0,115610.0,0.25052793]
[1758127348559,1.34738157,115620.0,115610.0,0.25052793]
[1758127348721,0.98334157,115620.0,115610.0,0.25052793]
[1758127348955,1.34738157,115620.0,115610.0,0.25052793]
[1758127349181,1.43265124,115620.0,115610.0,0.25052793]
[1758127349400,1.43478124,115620.0,115610.0,0.25052793]
[1758127350214,1.43775124,115620.0,115610.0,0.25052793]
[1758127350418,1.43265124,115620.0,115610.0,0.42352334]
[1758127350616,0.45240967,115620.0,115610.0,0.78949516]
[1758127350906,0.36714,115620.0,115610.0,0.78949516]
[1758127351080,0.70714,115620.0,115610.0,0.78949516]
[1758127351390,0.70714,115620.0,115610.0,0.42352334]
[1758127351911,0.70414,115620.0,115610.0,0.42352334]
[1758127352258,0.70714,115620.0,115610.0,0.42452334]
[1758127352674,0.43662,115620.0,115610.0,0.42452334]
[1758127352875,0.36714,115620.0,115610.0,0.42452334]
[1758127353323,0.0031,115620.0,115610.0,0.42452334]
[1758127353528,0.27362,115620.0,115610.0,0.79049516]
[1758127354274,0.27362,115620.0,115610.0,0.42462334]
[1758127355732,0.0031,115620.0,115610.0,0.42462334]
[1758127355912,0.27358,115620.0,115610.0,0.42462334]
[1758127356673,0.27354,115620.0,115610.0,0.42462334]
[1758127357364,0.0031,115620.0,115610.0,0.42462334]
[1758127357560,0.0031,115620.0,115610.0,0.82074706]
[1758127357759,0.27378,115620.0,115610.0,0.82074706]
[1758127358201,0.0031,115620.0,115610.0,0.82074706]
[1758127358380,0.27378,115620.0,115610.0,0.82074706]
[1758127359572,0.0031,115620.0,115610.0,0.82074706]
[1758127359756,0.27374,115620.0,115610.0,0.82074706]
[1758127360124,0.27394,115620.0,115610.0,0.45477524]
[1758127360373,0.2739,115620.0,115610.0,0.82074706]
[1758127360799,0.0031,115620.0,115610.0,0.82074706]
[1758127361039,0.2739,115620.0,115610.0,0.82074706]
[1758127362042,0.0031,115620.0,115610.0,0.82074706]
[1758127362247,0.27386,115620.0,115610.0,0.82074706]
[1758127363239,0.0031,115620.0,115610.0,0.82074706]
[1758127363443,0.27386,115620.0,115610.0,0.82074706]
[1758127364204,0.27382,115620.0,115610.0,0.82074706]
[1758127364793,0.0031,115620.0,115610.0,0.82074706]
[1758127365038,0.27382,115620.0,115610.0,0.82074706]
[1758127365383,0.0031,115620.0,115610.0,0.82074706]
[1758127365581,0.27378,115620.0,115610.0,0.82074706]
[1758127366176,0.0031,115620.0,115610.0,0.82074706]
[1758127366807,0.27374,115620.0,115610.0,0.82074706]
[1758127367772,0.0031,115620.0,115610.0,0.82074706]
[1758127367988,0.2737,115620.0,115610.0,0.82074706]
[1758127368170,0.003,115620.0,115610.0,0.82074706]
[1758127369017,0.0001,115630.0,115620.0,0.20313235]
[1758127369219,0.2707,115630.0,115620.0,0.56910417]
[1758127369428,0.2707,115630.0,115620.0,0.59337417]
[1758127370417,0.2717,115630.0,115620.0,0.59437417]
[1758127370642,0.2717,115630.0,115620.0,0.59447417]
[1758127371230,0.0011,115630.0,115620.0,0.59447417]
[1758127371468,0.27162,115630.0,115620.0,0.59447417]
[1758127371672,0.27162,115630.0,115620.0,0.22850235]
[1758127371894,0.27162,115630.0,115620.0,0.59447417]
[1758127373034,0.27158,115630.0,115620.0,0.59447417]
[1758127373388,0.27158,115630.0,115620.0,0.22850235]
[1758127375939,0.27158,115630.0,115620.0,0.64006905]
[1758127376172,0.27154,115630.0,115620.0,0.64006905]
[1758127376391,0.27154,115630.0,115620.0,0.22850235]
[1758127376601,0.27154,115630.0,115620.0,0.64006905]
[1758127379235,0.27154,115630.0,115620.0,0.22850235]
[1758127380067,0.27154,115630.0,115620.0,0.64006905]
[1758127380793,0.2715,115630.0,115620.0,0.72533872]
[1758127381004,0.2715,115630.0,115620.0,1.49257509]
[1758127381005,0.0011,115630.0,115620.0,1.49257509]
[1758127381218,0.0001,115640.0,115630.0,0.17296549]
[1758127381422,0.0001,115640.0,115630.0,0.58453219]
[1758127381624,0.27097126,115650.0,115640.0,0.20310243]
[1758127381847,0.27097126,115650.0,115640.0,0.61466913]
[1758127382027,0.27097126,115650.0,115640.0,0.63840913]
[1758127382697,0.27087126,115650.0,115640.0,0.63840913]
[1758127383219,0.27087126,115650.0,115640.0,0.64695819]
[1758127383638,0.27087126,115650.0,115640.0,1.04695819]
[1758127384056,0.27087126,115650.0,115640.0,1.1166037]
[1758127384716,0.00047126,115650.0,115640.0,1.1166037]
[1758127384876,0.27287126,115650.0,115640.0,1.1177037]
[1758127385936,0.27287126,115650.0,115640.0,1.04805819]
[1758127386302,0.27087126,115650.0,115640.0,1.04705819]
[1758127386668,0.27187126,115650.0,115640.0,1.05005819]
[1758127393165,0.00147126,115650.0,115640.0,1.05005819]
[1758127393378,0.27179126,115650.0,115640.0,1.05005819]
[1758127394135,0.27179126,115650.0,115640.0,0.63849149]
[1758127394339,0.27179126,115650.0,115640.0,1.05005819]
[1758127395175,0.27179126,115650.0,115640.0,1.13532786]
[1758127395718,0.00147126,115650.0,115640.0,1.05005819]
[1758127396125,0.27303126,115650.0,115640.0,1.05005819]
[1758127396378,0.00147126,115650.0,115640.0,1.05005819]
[1758127396523,0.27303126,115650.0,115640.0,1.05005819]
[1758127401029,0.27303126,115650.0,115640.0,0.63849149]
[1758127401231,0.27303126,115650.0,115640.0,1.05005819]
[1758127402487,0.00147126,115650.0,115640.0,1.13532786]
[1758127403103,0.00147126,115650.0,115640.0,1.1613062]
[1758127405581,0.27279126,115650.0,115640.0,1.1613062]
[1758127405768,0.00147126,115650.0,115640.0,1.1613062]
[1758127407317,0.00147126,115650.0,115640.0,0.7497395]
[1758127407524,0.00147126,115650.0,115640.0,1.1613062]
[1758127408789,0.00147126,115650.0,115640.0,0.7497395]
[1758127408986,0.00147126,115650.0,115640.0,1.1613062]
[1758127410794,0.00147126,115650.0,115640.0,0.7497395]
[1758127410997,0.00147126,115650.0,115640.0,1.1613062]
[1758127411232,0.00147126,115650.0,115640.0,0.20620243]
[1758127411233,0.82971466,115650.0,115640.0,0.20620243]
[1758127411406,0.90929162,115650.0,115640.0,0.17605053]
[1758127411604,1.16749687,115650.0,115640.0,0.17605053]
[1758127412088,0.96675403,115650.0,115640.0,0.17605053]
[1758127412303,0.93799433,115650.0,115640.0,0.17605053]
[1758127413478,0.52642763,115650.0,115640.0,0.17605053]
[1758127413935,0.52652763,115650.0,115640.0,0.17605053]